[Event "NJSK 2018 Meisjes C"]
[Site "Assen, Netherlands"]
[Date "2018.05.05"]
[Round "7.4"]
[White "Hatzmann, Mirthe"]
[Black "Raulji, Kavya"]
[Result "0-1"]
[TimeControl "40/90m+30m+30sec/move"]
[WhiteElo "1323"]
[BlackElo "1394"]

1. e4 {[%clk 01:30:59]} {[%emt 00:00:08]} c5 {[%clk 01:30:57]} {[%emt
00:00:06]} 2. Nc3 {[%clk 01:31:24]} {[%emt 00:00:34]} d6 {[%clk 01:31:13]}
{[%emt 00:00:26]} 3. g3 {[%clk 01:31:48]} {[%emt 00:00:10]} g6 {[%clk
01:31:29]} {[%emt 00:00:19]} 4. Bg2 {[%clk 01:32:13]} {[%emt 00:00:09]} Bg7
{[%clk 01:31:36]} {[%emt 00:00:28]} 5. d3 {[%clk 01:32:30]} {[%emt 00:00:12]}
Nc6 {[%clk 01:31:53]} {[%emt 00:00:13]} 6. Nge2 {[%clk 01:32:30]} {[%emt
00:00:47]} Nf6 {[%clk 01:31:19]} {[%emt 00:01:01]} 7. h3 {[%clk 01:32:44]}
{[%emt 00:00:23]} O-O {[%clk 01:30:48]} {[%emt 00:01:07]} 8. O-O {[%clk
01:32:10]} {[%emt 00:01:00]} e5 {[%clk 01:30:07]} {[%emt 00:00:56]} 9. f4
{[%clk 01:28:02]} {[%emt 00:03:20]} exf4 {[%clk 01:27:49]} {[%emt 00:02:48]} 10.
Nxf4 {[%clk 01:25:53]} {[%emt 00:02:40]} Be6 {[%clk 01:25:23]} {[%emt
00:02:55]} 11. Be3 {[%clk 01:22:30]} {[%emt 00:03:52]} Qd7 {[%clk 01:20:52]}
{[%emt 00:05:01]} 12. Kh2 {[%clk 01:16:29]} {[%emt 00:06:32]} Nd4 {[%clk
01:17:11]} {[%emt 00:04:10]} 13. Bxd4 {[%clk 01:02:45]} {[%emt 00:14:15]} cxd4
{[%clk 01:17:33]} {[%emt 00:00:09]} 14. Nce2 {[%clk 00:59:35]} {[%emt
00:03:40]} Ne8 {[%clk 01:15:39]} {[%emt 00:02:30]} 15. Nc1 {[%clk 00:55:21]}
{[%emt 00:04:38]} Nc7 {[%clk 01:14:53]} {[%emt 00:01:15]} 16. Nb3 {[%clk
00:52:47]} {[%emt 00:03:06]} Rac8 {[%clk 01:13:31]} {[%emt 00:01:51]} 17. Ne2
{[%clk 00:48:10]} {[%emt 00:05:06]} Bxb3 {[%clk 01:12:36]} {[%emt 00:01:25]} 18.
axb3 {[%clk 00:48:03]} {[%emt 00:00:41]} a6 {[%clk 01:11:54]} {[%emt 00:01:12]}
19. Ra4 {[%clk 00:37:20]} {[%emt 00:11:10]} Ne6 {[%clk 01:07:21]} {[%emt
00:05:03]} 20. Qd2 {[%clk 00:34:19]} {[%emt 00:03:32]} Nc5 {[%clk 01:02:50]}
{[%emt 00:05:01]} 21. Raa1 {[%clk 00:32:49]} {[%emt 00:01:59]} Ne6 {[%clk
00:56:40]} {[%emt 00:06:40]} 22. Rac1 {[%clk 00:29:46]} {[%emt 00:03:33]} h5
{[%clk 00:52:44]} {[%emt 00:04:25]} 23. Qb4 {[%clk 00:25:17]} {[%emt 00:05:01]}
Bh6 {[%clk 00:52:08]} {[%emt 00:01:05]} 24. Nf4 {[%clk 00:24:55]} {[%emt
00:00:52]} h4 {[%clk 00:46:10]} {[%emt 00:06:28]} 25. Nd5 {[%clk 00:18:54]}
{[%emt 00:06:31]} hxg3 {[%clk 00:44:19]} {[%emt 00:02:20]} 26. Kxg3 {[%clk
00:18:22]} {[%emt 00:01:02]} Qd8 {[%clk 00:42:41]} {[%emt 00:02:09]} 27. Rcd1
{[%clk 00:13:33]} {[%emt 00:05:19]} Qg5+ {[%clk 00:40:25]} {[%emt 00:02:45]} 28.
Kf3 {[%clk 00:12:02]} {[%emt 00:02:01]} Qh5+ {[%clk 00:38:37]} {[%emt
00:02:19]} 29. Kg3 {[%clk 00:11:02]} {[%emt 00:01:31]} Qe5+ {[%clk 00:36:37]}
{[%emt 00:02:28]} 30. Kf2 {[%clk 00:09:47]} {[%emt 00:01:46]} Rxc2+ {[%clk
00:36:42]} {[%emt 00:00:25]} 31. Kg1 {[%clk 00:09:12]} {[%emt 00:01:05]} Qg3
{[%clk 00:36:26]} {[%emt 00:00:45]} 32. Nf4 {[%clk 00:08:11]} {[%emt 00:01:32]}
Nxf4 {[%clk 00:36:41]} {[%emt 00:00:16]} 33. Rd2 {[%clk 00:08:10]} {[%emt
00:00:31]} Nxh3+ {[%clk 00:35:39]} {[%emt 00:01:31]} 34. Kh1 {[%clk 00:08:27]}
{[%emt 00:00:13]} Rxd2 {[%clk 00:35:49]} {[%emt 00:00:20]} 0-1

[Event "NJSK 2018 Meisjes C"]
[Site "Assen, Netherlands"]
[Date "2018.05.05"]
[Round "7.5"]
[White "De Zoeten, Cato"]
[Black "Velasco, Kathleen"]
[Result "0-1"]
[TimeControl "40/90m+30m+30sec/move"]
[WhiteElo "1496"]
[BlackElo "1284"]

1. e4 {[%clk 01:30:58]} {[%emt 00:00:06]} e5 {[%clk 01:30:56]} {[%emt
00:00:26]} 2. Nf3 {[%clk 01:31:24]} {[%emt 00:00:20]} Nc6 {[%clk 01:31:22]}
{[%emt 00:00:06]} 3. d4 {[%clk 01:31:47]} {[%emt 00:00:12]} exd4 {[%clk
01:31:47]} {[%emt 00:00:09]} 4. Nxd4 {[%clk 01:32:07]} {[%emt 00:00:14]} Bc5
{[%clk 01:31:55]} {[%emt 00:00:28]} 5. Be3 {[%clk 01:32:30]} {[%emt 00:00:10]}
Qf6 {[%clk 01:32:20]} {[%emt 00:00:06]} 6. c3 {[%clk 01:32:47]} {[%emt
00:00:13]} Nge7 {[%clk 01:32:34]} {[%emt 00:00:22]} 7. Bc4 {[%clk 01:32:49]}
{[%emt 00:00:39]} Ne5 {[%clk 01:32:24]} {[%emt 00:00:35]} 8. Be2 {[%clk
01:33:15]} {[%emt 00:00:03]} Qg6 {[%clk 01:32:30]} {[%emt 00:00:28]} 9. O-O
{[%clk 01:33:05]} {[%emt 00:00:53]} d5 {[%clk 01:29:47]} {[%emt 00:02:51]} 10.
Nd2 {[%clk 01:23:12]} {[%emt 00:09:09]} dxe4 {[%clk 01:22:09]} {[%emt
00:08:08]} 11. Bh5 {[%clk 01:19:55]} {[%emt 00:03:47]} Nf3+ {[%clk 00:56:51]}
{[%emt 00:25:50]} 12. N4xf3 {[%clk 01:11:31]} {[%emt 00:08:52]} Qxh5 {[%clk
00:56:50]} {[%emt 00:00:31]} 13. Bxc5 {[%clk 01:10:40]} {[%emt 00:01:21]} Qxc5
{[%clk 00:56:49]} {[%emt 00:00:31]} 14. Nxe4 {[%clk 01:09:59]} {[%emt
00:01:11]} Qc6 {[%clk 00:56:41]} {[%emt 00:00:38]} 15. Re1 {[%clk 01:06:51]}
{[%emt 00:03:37]} O-O {[%clk 00:55:35]} {[%emt 00:01:37]} 16. Qc2 {[%clk
01:03:50]} {[%emt 00:03:30]} Bf5 {[%clk 00:55:38]} {[%emt 00:00:28]} 17. Nd4
{[%clk 01:02:24]} {[%emt 00:01:51]} Qg6 {[%clk 00:50:51]} {[%emt 00:05:22]} 18.
Nxf5 {[%clk 00:50:41]} {[%emt 00:12:13]} Qxf5 {[%clk 00:50:33]} {[%emt
00:00:48]} 19. Rad1 {[%clk 00:38:53]} {[%emt 00:12:18]} Nc6 {[%clk 00:44:50]}
{[%emt 00:06:14]} 20. Qb3 {[%clk 00:36:58]} {[%emt 00:02:24]} Rad8 {[%clk
00:42:07]} {[%emt 00:03:13]} 21. Ng3 {[%clk 00:32:16]} {[%emt 00:05:09]} Qf6
{[%clk 00:25:00]} {[%emt 00:17:40]} 22. Rxd8 {[%clk 00:23:37]} {[%emt
00:09:12]} Rxd8 {[%clk 00:20:58]} {[%emt 00:04:30]} 23. Qxb7 {[%clk 00:21:48]}
{[%emt 00:02:18]} h6 {[%clk 00:18:52]} {[%emt 00:02:36]} 24. Qxc7 {[%clk
00:18:27]} {[%emt 00:03:50]} Rb8 {[%clk 00:17:00]} {[%emt 00:02:22]} 25. Rd1
{[%clk 00:16:55]} {[%emt 00:02:01]} Rxb2 {[%clk 00:16:50]} {[%emt 00:00:42]} 26.
Rd6 {[%clk 00:15:29]} {[%emt 00:01:53]} Qxf2+ {[%clk 00:16:55]} {[%emt
00:00:28]} 27. Kh1 {[%clk 00:15:26]} {[%emt 00:00:33]} Qxg2 {[%clk 00:16:57]}
{[%emt 00:00:29]} 0-1

[Event "NJSK 2018 Meisjes C"]
[Site "Assen, Netherlands"]
[Date "2018.05.05"]
[Round "7.6"]
[White "Honkoop, Stella"]
[Black "Martinez, Sara"]
[Result "0-1"]
[TimeControl "40/90m+30m+30sec/move"]
[WhiteElo "1583"]
[BlackElo "1446"]

1. e4 {[%clk 01:30:58]} {[%emt 00:00:03]} e6 {[%clk 01:29:17]} {[%emt
00:02:55]} 2. d4 {[%clk 01:31:23]} {[%emt 00:00:07]} d5 {[%clk 01:29:41]}
{[%emt 00:00:07]} 3. e5 {[%clk 01:31:46]} {[%emt 00:00:14]} c5 {[%clk
01:30:03]} {[%emt 00:00:07]} 4. c3 {[%clk 01:32:05]} {[%emt 00:00:10]} Nc6
{[%clk 01:30:27]} {[%emt 00:00:05]} 5. Nf3 {[%clk 01:32:19]} {[%emt 00:00:14]}
Bd7 {[%clk 01:30:49]} {[%emt 00:00:07]} 6. Bd3 {[%clk 01:31:49]} {[%emt
00:01:18]} cxd4 {[%clk 01:28:33]} {[%emt 00:02:29]} 7. cxd4 {[%clk 01:31:26]}
{[%emt 00:00:37]} Rc8 {[%clk 01:26:16]} {[%emt 00:01:43]} 8. O-O {[%clk
01:29:17]} {[%emt 00:02:40]} Nb4 {[%clk 01:21:10]} {[%emt 00:05:35]} 9. Nc3
{[%clk 01:24:42]} {[%emt 00:05:05]} Nxd3 {[%clk 01:17:57]} {[%emt 00:03:42]} 10.
Qxd3 {[%clk 01:25:01]} {[%emt 00:00:11]} Bb4 {[%clk 01:18:07]} {[%emt
00:00:20]} 11. Bd2 {[%clk 01:17:50]} {[%emt 00:07:42]} Qb6 {[%clk 01:15:25]}
{[%emt 00:03:11]} 12. a4 {[%clk 01:12:15]} {[%emt 00:06:05]} a6 {[%clk
01:11:26]} {[%emt 00:04:30]} 13. Rfc1 {[%clk 01:08:31]} {[%emt 00:04:14]} Ne7
{[%clk 01:09:01]} {[%emt 00:02:54]} 14. h3 {[%clk 01:03:14]} {[%emt 00:05:48]}
h6 {[%clk 01:04:19]} {[%emt 00:05:11]} 15. Ne2 {[%clk 00:53:42]} {[%emt
00:10:02]} Rxc1+ {[%clk 01:03:36]} {[%emt 00:01:14]} 16. Bxc1 {[%clk 00:52:40]}
{[%emt 00:01:32]} O-O {[%clk 00:59:53]} {[%emt 00:04:13]} 17. b3 {[%clk
00:50:14]} {[%emt 00:02:57]} Rc8 {[%clk 00:57:29]} {[%emt 00:02:52]} 18. Bb2
{[%clk 00:45:28]} {[%emt 00:05:16]} Nc6 {[%clk 00:53:54]} {[%emt 00:04:06]} 19.
g4 {[%clk 00:43:00]} {[%emt 00:02:58]} Be7 {[%clk 00:52:35]} {[%emt 00:01:48]}
20. Ba3 {[%clk 00:40:32]} {[%emt 00:02:59]} Bxa3 {[%clk 00:52:03]} {[%emt
00:01:02]} 21. Rxa3 {[%clk 00:40:53]} {[%emt 00:00:07]} Nb4 {[%clk 00:52:26]}
{[%emt 00:00:08]} 22. Qb1 {[%clk 00:37:07]} {[%emt 00:04:16]} Rc2 {[%clk
00:44:28]} {[%emt 00:08:27]} 23. Kf1 {[%clk 00:35:40]} {[%emt 00:01:58]} a5
{[%clk 00:40:46]} {[%emt 00:04:15]} 24. Ne1 {[%clk 00:34:06]} {[%emt 00:02:01]}
Rc7 {[%clk 00:39:29]} {[%emt 00:01:46]} 25. Ra1 {[%clk 00:32:55]} {[%emt
00:01:43]} Qa6 {[%clk 00:37:34]} {[%emt 00:02:24]} 26. Qd1 {[%clk 00:31:22]}
{[%emt 00:02:04]} b5 {[%clk 00:34:51]} {[%emt 00:03:12]} 27. Kg2 {[%clk
00:29:29]} {[%emt 00:02:22]} bxa4 {[%clk 00:32:24]} {[%emt 00:02:58]} 28. bxa4
{[%clk 00:29:50]} {[%emt 00:00:09]} Rc4 {[%clk 00:31:23]} {[%emt 00:01:32]} 29.
Rb1 {[%clk 00:28:24]} {[%emt 00:01:55]} Qc6 {[%clk 00:30:33]} {[%emt 00:01:18]}
30. Ra1 {[%clk 00:20:39]} {[%emt 00:08:17]} Nc2 {[%clk 00:25:29]} {[%emt
00:05:33]} 31. Rb1 {[%clk 00:19:20]} {[%emt 00:01:49]} Nxe1+ {[%clk 00:21:39]}
{[%emt 00:04:20]} 32. Qxe1 {[%clk 00:17:57]} {[%emt 00:01:54]} Rxa4 {[%clk
00:19:41]} {[%emt 00:02:27]} 33. Rb8+ {[%clk 00:17:10]} {[%emt 00:01:16]} Be8
{[%clk 00:17:37]} {[%emt 00:02:35]} 34. Qd2 {[%clk 00:14:55]} {[%emt 00:02:45]}
Kf8 {[%clk 00:16:52]} {[%emt 00:01:15]} 35. g5 {[%clk 00:14:13]} {[%emt
00:01:11]} h5 {[%clk 00:16:28]} {[%emt 00:00:54]} 36. g6 {[%clk 00:10:13]}
{[%emt 00:04:31]} Qc7 {[%clk 00:15:18]} {[%emt 00:01:34]} 37. Ra8 {[%clk
00:10:21]} {[%emt 00:00:28]} fxg6 {[%clk 00:12:02]} {[%emt 00:03:45]} 38. Nf4
{[%clk 00:09:49]} {[%emt 00:01:03]} Qf7 {[%clk 00:09:34]} {[%emt 00:02:43]} 39.
Qc2 {[%clk 00:07:47]} {[%emt 00:02:47]} Rc4 {[%clk 00:03:08]} {[%emt 00:06:56]}
40. Nxg6+ {[%clk 00:07:06]} {[%emt 00:01:11]} Kg8 {[%clk 00:03:09]} {[%emt
00:00:27]} 41. Qb1 {[%clk 00:05:04]} {[%emt 00:02:34]} Rxd4 {[%clk 00:01:02]}
{[%emt 00:02:37]} 0-1

[Event "NJSK 2018 Meisjes C"]
[Site "Assen, Netherlands"]
[Date "2018.05.05"]
[Round "7.7"]
[White "Jonkman Inza, Amelia Marry"]
[Black "Morote, Luna"]
[Result "1/2-1/2"]
[TimeControl "40/90m+30m+30sec/move"]
[WhiteElo "1222"]
[BlackElo "1415"]

1. d4 {[%clk 01:30:58]} {[%emt 00:00:05]} Nf6 {[%clk 01:30:55]} {[%emt
00:00:26]} 2. c4 {[%clk 01:31:09]} {[%emt 00:00:51]} g6 {[%clk 01:31:17]}
{[%emt 00:00:13]} 3. Nc3 {[%clk 01:31:30]} {[%emt 00:00:09]} Bg7 {[%clk
01:31:41]} {[%emt 00:00:10]} 4. e4 {[%clk 01:31:49]} {[%emt 00:00:16]} d6
{[%clk 01:32:07]} {[%emt 00:00:05]} 5. Nf3 {[%clk 01:30:47]} {[%emt 00:01:41]}
O-O {[%clk 01:32:11]} {[%emt 00:00:30]} 6. Be3 {[%clk 01:29:10]} {[%emt
00:02:23]} Ng4 {[%clk 01:31:14]} {[%emt 00:01:09]} 7. Bd2 {[%clk 01:22:10]}
{[%emt 00:06:10]} e5 {[%clk 01:29:33]} {[%emt 00:02:10]} 8. d5 {[%clk
01:19:35]} {[%emt 00:03:05]} a5 {[%clk 01:29:22]} {[%emt 00:00:41]} 9. h3
{[%clk 01:13:40]} {[%emt 00:06:24]} Nf6 {[%clk 01:26:42]} {[%emt 00:03:12]} 10.
a3 {[%clk 01:12:25]} {[%emt 00:01:46]} a4 {[%clk 01:24:40]} {[%emt 00:02:31]}
11. Qc2 {[%clk 01:05:25]} {[%emt 00:07:29]} Bd7 {[%clk 01:23:30]} {[%emt
00:01:38]} 12. Be3 {[%clk 01:00:13]} {[%emt 00:05:44]} b6 {[%clk 01:22:17]}
{[%emt 00:01:43]} 13. Be2 {[%clk 00:55:30]} {[%emt 00:05:14]} Nh5 {[%clk
01:19:38]} {[%emt 00:03:09]} 14. Qd2 {[%clk 00:42:58]} {[%emt 00:13:02]} Qe8
{[%clk 01:14:40]} {[%emt 00:05:28]} 15. g4 {[%clk 00:40:59]} {[%emt 00:02:29]}
Nf6 {[%clk 01:14:25]} {[%emt 00:00:47]} 16. Kf1 {[%clk 00:34:07]} {[%emt
00:07:23]} Na6 {[%clk 01:12:07]} {[%emt 00:02:47]} 17. Qc1 {[%clk 00:32:57]}
{[%emt 00:01:41]} Nc5 {[%clk 01:08:21]} {[%emt 00:04:15]} 18. Nd2 {[%clk
00:32:48]} {[%emt 00:00:38]} Qe7 {[%clk 01:05:39]} {[%emt 00:03:12]} 19. Qc2
{[%clk 00:26:48]} {[%emt 00:06:31]} h6 {[%clk 01:03:02]} {[%emt 00:03:06]} 20.
b4 {[%clk 00:25:08]} {[%emt 00:02:12]} axb3 {[%clk 01:02:54]} {[%emt 00:00:37]}
21. Nxb3 {[%clk 00:24:45]} {[%emt 00:00:52]} Nxb3 {[%clk 01:01:32]} {[%emt
00:01:53]} 22. Qxb3 {[%clk 00:24:46]} {[%emt 00:00:29]} Nh7 {[%clk 00:59:12]}
{[%emt 00:02:49]} 23. h4 {[%clk 00:23:54]} {[%emt 00:01:22]} f5 {[%clk
00:58:50]} {[%emt 00:00:52]} 24. gxf5 {[%clk 00:19:54]} {[%emt 00:04:30]} gxf5
{[%clk 00:58:53]} {[%emt 00:00:27]} 25. f3 {[%clk 00:17:22]} {[%emt 00:03:02]}
f4 {[%clk 00:58:23]} {[%emt 00:01:00]} 26. Bf2 {[%clk 00:16:36]} {[%emt
00:01:17]} h5 {[%clk 00:57:54]} {[%emt 00:00:59]} 27. Qd1 {[%clk 00:12:37]}
{[%emt 00:04:29]} Bf6 {[%clk 00:57:34]} {[%emt 00:00:48]} 28. Ke1 {[%clk
00:07:52]} {[%emt 00:05:17]} Kh8 {[%clk 00:57:50]} {[%emt 00:00:15]} 29. Kd2
{[%clk 00:07:00]} {[%emt 00:01:23]} Rg8 {[%clk 00:57:59]} {[%emt 00:00:20]} 30.
Rh2 {[%clk 00:06:47]} {[%emt 00:00:44]} Rg7 {[%clk 00:57:50]} {[%emt 00:00:37]}
31. Qh1 {[%clk 00:04:57]} {[%emt 00:02:22]} Nf8 {[%clk 00:48:07]} {[%emt
00:10:13]} 32. a4 {[%clk 00:03:59]} {[%emt 00:01:28]} Ng6 {[%clk 00:47:51]}
{[%emt 00:00:45]} 33. Nb5 {[%clk 00:02:21]} {[%emt 00:02:09]} Bxb5 {[%clk
00:47:50]} {[%emt 00:00:32]} 34. cxb5 {[%clk 00:02:09]} {[%emt 00:00:42]} Nf8
{[%clk 00:46:55]} {[%emt 00:01:24]} 35. Be1 {[%clk 00:01:05]} {[%emt 00:01:37]}
Nd7 {[%clk 00:46:41]} {[%emt 00:00:41]} 36. Kc2 {[%clk 00:01:04]} {[%emt
00:00:31]} Nc5 {[%clk 00:47:03]} {[%emt 00:00:08]} 37. a5 {[%clk 00:01:23]}
{[%emt 00:00:12]} bxa5 {[%clk 00:46:33]} {[%emt 00:01:00]} 38. Rxa5 {[%clk
00:01:37]} {[%emt 00:00:16]} Rgg8 {[%clk 00:46:28]} {[%emt 00:00:37]} 39. Bc4
{[%clk 00:01:08]} {[%emt 00:00:57]} Rxa5 {[%clk 00:46:24]} {[%emt 00:00:35]} 40.
Bxa5 {[%clk 00:01:32]} {[%emt 00:00:05]} Ra8 {[%clk 00:42:44]} {[%emt
00:04:09]} 41. Be1 {[%clk 00:01:03]} {[%emt 00:00:59]} Qd8 {[%clk 00:41:23]}
{[%emt 00:01:51]} 42. Rg2 {[%clk 00:29:14]} {[%emt 00:02:19]} Bg7 {[%clk
01:10:30]} {[%emt 00:01:22]} 43. Qg1 {[%clk 00:28:07]} {[%emt 00:01:38]} Qe7
{[%clk 01:06:24]} {[%emt 00:04:36]} 44. Rg5 {[%clk 00:27:40]} {[%emt 00:00:57]}
Qf7 {[%clk 01:06:14]} {[%emt 00:00:40]} 45. Rg6 {[%clk 00:25:30]} {[%emt
00:02:40]} Rb8 {[%clk 01:05:34]} {[%emt 00:01:11]} 46. Qg5 {[%clk 00:24:49]}
{[%emt 00:01:11]} Qg8 {[%clk 01:01:46]} {[%emt 00:04:18]} 47. Qxh5 {[%clk
00:24:24]} {[%emt 00:00:56]} Qh7 {[%clk 01:02:02]} {[%emt 00:00:13]} 48. Qg5
{[%clk 00:22:30]} {[%emt 00:02:23]} Nd7 {[%clk 01:00:09]} {[%emt 00:02:24]} 49.
h5 {[%clk 00:21:32]} {[%emt 00:01:28]} Nf8 {[%clk 00:59:53]} {[%emt 00:00:45]}
50. h6 {[%clk 00:19:48]} {[%emt 00:02:14]} Nxg6 {[%clk 00:57:49]} {[%emt
00:03:02]} 51. hxg7 {[%clk 00:19:27]} {[%emt 00:00:52]} Kxg7 {[%clk 00:55:52]}
{[%emt 00:02:28]} 52. Qg2 {[%clk 00:16:50]} {[%emt 00:03:05]} Kh8 {[%clk
00:54:54]} {[%emt 00:01:29]} 53. Qf2 {[%clk 00:15:37]} {[%emt 00:01:42]} Rb7
{[%clk 00:54:43]} {[%emt 00:00:42]} 54. Ba5 {[%clk 00:15:07]} {[%emt 00:00:59]}
Ne7 {[%clk 00:52:45]} {[%emt 00:02:27]} 55. b6 {[%clk 00:14:04]} {[%emt
00:01:34]} cxb6 {[%clk 00:50:57]} {[%emt 00:02:17]} 56. Bxb6 {[%clk 00:14:13]}
{[%emt 00:00:21]} Nc8 {[%clk 00:50:58]} {[%emt 00:00:28]} 57. Bd8 {[%clk
00:12:49]} {[%emt 00:01:55]} Ne7 {[%clk 00:50:16]} {[%emt 00:01:12]} 58. Ba6
{[%clk 00:11:57]} {[%emt 00:01:23]} Rd7 {[%emt 00:04:50]} 1/2-1/2

[Event "NJSK 2018 Meisjes C"]
[Site "Assen, Netherlands"]
[Date "2018.05.05"]
[Round "7.8"]
[White "Cordes, Jule"]
[Black "Arnold, Kiri"]
[Result "1/2-1/2"]
[TimeControl "40/90m+30m+30sec/move"]
[WhiteElo "1551"]
[BlackElo "1340"]

1. d4 {[%clk 01:30:29]} {[%emt 00:01:26]} Nf6 {[%clk 01:30:51]} {[%emt
00:00:14]} 2. c4 {[%clk 01:30:47]} {[%emt 00:00:17]} c5 {[%clk 01:31:08]}
{[%emt 00:00:17]} 3. d5 {[%clk 01:31:04]} {[%emt 00:00:12]} b5 {[%clk
01:31:13]} {[%emt 00:00:32]} 4. cxb5 {[%clk 01:31:22]} {[%emt 00:00:14]} a6
{[%clk 01:31:42]} {[%emt 00:00:04]} 5. bxa6 {[%clk 01:31:41]} {[%emt 00:00:17]}
Bxa6 {[%clk 01:32:11]} 6. Nf3 {[%clk 01:31:56]} {[%emt 00:00:12]} d6 {[%clk
01:31:43]} {[%emt 00:01:03]} 7. Nc3 {[%clk 01:32:08]} {[%emt 00:00:25]} g6
{[%clk 01:31:32]} {[%emt 00:00:44]} 8. Bg5 {[%clk 01:32:24]} {[%emt 00:00:10]}
Bg7 {[%clk 01:31:34]} {[%emt 00:00:33]} 9. g3 {[%clk 01:32:25]} {[%emt
00:00:23]} O-O {[%clk 01:31:07]} {[%emt 00:00:45]} 10. Bg2 {[%clk 01:32:43]}
{[%emt 00:00:11]} Nbd7 {[%clk 01:28:38]} {[%emt 00:01:39]} 11. O-O {[%clk
01:32:56]} {[%emt 00:00:17]} Qc7 {[%clk 01:22:09]} {[%emt 00:06:59]} 12. Qd2
{[%clk 01:32:02]} {[%emt 00:01:23]} Rfb8 {[%clk 01:18:36]} {[%emt 00:04:04]} 13.
Rab1 {[%clk 01:27:09]} {[%emt 00:05:23]} Nb6 {[%clk 01:12:49]} {[%emt
00:06:18]} 14. a3 {[%clk 01:19:51]} {[%emt 00:07:46]} Nbd7 {[%clk 00:53:05]}
{[%emt 00:20:15]} 15. Rfc1 {[%clk 01:10:00]} {[%emt 00:10:21]} c4 {[%clk
00:45:25]} {[%emt 00:08:12]} 16. Nd4 {[%clk 01:06:27]} {[%emt 00:04:00]} Nc5
{[%clk 00:41:58]} {[%emt 00:03:58]} 17. Qc2 {[%clk 00:51:59]} {[%emt 00:14:56]}
Nb3 {[%clk 00:29:07]} {[%emt 00:13:23]} 18. Nxb3 {[%clk 00:50:59]} {[%emt
00:01:30]} cxb3 {[%clk 00:29:13]} {[%emt 00:00:25]} 19. Qd2 {[%clk 00:49:51]}
{[%emt 00:01:36]} Qd8 {[%clk 00:26:40]} {[%emt 00:03:06]} 20. Nd1 {[%clk
00:42:31]} {[%emt 00:07:48]} Bb7 {[%clk 00:23:33]} {[%emt 00:03:39]} 21. Nc3
{[%clk 00:39:20]} {[%emt 00:03:42]} Ba6 {[%clk 00:23:22]} {[%emt 00:01:03]} 22.
h3 {[%clk 00:35:17]} {[%emt 00:04:08]} Nd7 {[%clk 00:21:49]} {[%emt 00:02:03]}
23. Nd1 {[%clk 00:30:57]} {[%emt 00:04:48]} Nc5 {[%clk 00:19:29]} {[%emt
00:02:53]} 24. Qe3 {[%clk 00:29:11]} {[%emt 00:02:11]} Rb7 {[%clk 00:13:19]}
{[%emt 00:06:47]} 25. Nc3 {[%clk 00:22:49]} {[%emt 00:06:48]} Qf8 {[%clk
00:09:46]} {[%emt 00:04:03]} 26. Qd2 {[%clk 00:21:02]} {[%emt 00:02:16]} Nd7
{[%emt 00:13:42]} 27. Re1 {[%clk 00:08:56]} Nc5 {[%emt 00:00:33]} 1/2-1/2